[Event "Live Chess"]
[Site "Chess.com"]
[Date "2024.06.01"]
[Round "-"]
[White "GerardATHart"]
[Black "Velocity"]
[Result "0-1"]
[WhiteElo "1423"]
[BlackElo "1705"]
[TimeControl "300"]
[EndTime "11:43:52 PDT"]
[Termination "Velocity won by checkmate"]

1. e4 {[%clk 0:04:54.5]} 1... c5 {[%clk 0:04:58.6]} 2. Nc3 {[%clk 0:04:51.3]}
2... g6 {[%clk 0:04:56.8]} 3. d4 {[%clk 0:04:48.5]} 3... cxd4 {[%clk 0:04:55.5]}
4. Qxd4 {[%clk 0:04:47.1]} 4... Nf6 {[%clk 0:04:51.8]} 5. Be3 {[%clk 0:04:23.8]}
5... Bg7 {[%clk 0:04:48.4]} 6. O-O-O {[%clk 0:04:21.5]} 6... Nc6 {[%clk
0:04:46.3]} 7. Qd2 {[%clk 0:04:19.3]} 7... O-O {[%clk 0:04:42.7]} 8. h4 {[%clk
0:04:16.4]} 8... d6 {[%clk 0:04:36.3]} 9. f3 {[%clk 0:04:09.2]} 9... Be6 {[%clk
0:04:35]} 10. g4 {[%clk 0:04:06.7]} 10... Rc8 {[%clk 0:04:29.3]} 11. h5 {[%clk
0:04:03.4]} 11... Nd7 {[%clk 0:04:16.6]} 12. hxg6 {[%clk 0:04:00.8]} 12... fxg6
{[%clk 0:04:13.6]} 13. Qh2 {[%clk 0:03:58.6]} 13... Kf7 {[%clk 0:03:50.2]} 14.
Qg2 {[%clk 0:03:27.9]} 14... Rh8 {[%clk 0:03:41.8]} 15. Nh3 {[%clk 0:03:24.4]}
15... Nb4 {[%clk 0:03:35.5]} 16. Ng5+ {[%clk 0:03:20.5]} 16... Kf6 {[%clk
0:03:16.5]} 17. Nxe6 {[%clk 0:03:04.1]} 17... Kxe6 {[%clk 0:03:16.4]} 18. g5
{[%clk 0:03:02.7]} 18... Kf7 {[%clk 0:03:07.4]} 19. a3 {[%clk 0:02:47.3]} 19...
Bxc3 {[%clk 0:03:01.6]} 20. bxc3 {[%clk 0:02:41.1]} 20... Na2+ {[%clk 0:03:00]}
21. Kb2 {[%clk 0:02:18.1]} 21... Nxc3 {[%clk 0:02:51.1]} 22. Rd4 {[%clk
0:02:03.8]} 22... Qb6+ {[%clk 0:02:42.9]} 23. Kc1 {[%clk 0:01:56.2]} 23... Qb1+
{[%clk 0:02:41.6]} 24. Kd2 {[%clk 0:01:53.7]} 24... Qd1# {[%clk 0:02:40.6]} 0-1

[Event "Live Chess"]
[Site "Chess.com"]
[Date "2024.06.01"]
[Round "-"]
[White "KwikPhoenix"]
[Black "FortunatusMax"]
[Result "1-0"]
[WhiteElo "2433"]
[BlackElo "914"]
[TimeControl "300"]
[EndTime "11:43:56 PDT"]
[Termination "KwikPhoenix won by checkmate"]

1. b3 {[%clk 0:04:59.3]} 1... e5 {[%clk 0:04:57.8]} 2. Bb2 {[%clk 0:04:59.2]}
2... Nc6 {[%clk 0:04:54]} 3. e3 {[%clk 0:04:58.6]} 3... Bd6 {[%clk 0:04:48.9]}
4. Na3 {[%clk 0:04:56]} 4... Bxa3 {[%clk 0:04:47.2]} 5. Bxa3 {[%clk 0:04:55.2]}
5... Nf6 {[%clk 0:04:46.3]} 6. Bb2 {[%clk 0:04:53.4]} 6... O-O {[%clk
0:04:44.7]} 7. Nf3 {[%clk 0:04:52.4]} 7... Re8 {[%clk 0:04:43]} 8. d4 {[%clk
0:04:49.6]} 8... d6 {[%clk 0:04:39.6]} 9. Bb5 {[%clk 0:04:46.9]} 9... Bd7 {[%clk
0:04:37.5]} 10. Qd2 {[%clk 0:04:44.8]} 10... exd4 {[%clk 0:04:34.5]} 11. Bxc6
{[%clk 0:04:40.2]} 11... dxe3 {[%clk 0:04:30.3]} 12. fxe3 {[%clk 0:04:38.6]}
12... Bxc6 {[%clk 0:04:29]} 13. O-O-O {[%clk 0:04:37.8]} 13... Bxf3 {[%clk
0:04:25.4]} 14. gxf3 {[%clk 0:04:36.6]} 14... b6 {[%clk 0:04:22.2]} 15. Rdg1
{[%clk 0:04:35.5]} 15... Nh5 {[%clk 0:04:10.8]} 16. Qc3 {[%clk 0:04:31.7]} 16...
f6 {[%clk 0:04:04.9]} 17. Qc4+ {[%clk 0:04:28.5]} 17... Kh8 {[%clk 0:04:01.7]}
18. Qd5 {[%clk 0:04:28.4]} 18... Rxe3 {[%clk 0:03:50.9]} 19. Qxh5 {[%clk
0:04:26.4]} 19... Qe7 {[%clk 0:03:44.4]} 20. Bd4 {[%clk 0:04:23.4]} 20... Re2
{[%clk 0:03:36.8]} 21. Kb2 {[%clk 0:04:21.6]} 21... c5 {[%clk 0:03:34.1]} 22.
Bc3 {[%clk 0:04:20.2]} 22... a5 {[%clk 0:03:30.6]} 23. Re1 {[%clk 0:04:17.6]}
23... Rxe1 {[%clk 0:03:28.9]} 24. Rxe1 {[%clk 0:04:17.1]} 24... Qd7 {[%clk
0:03:22.4]} 25. a4 {[%clk 0:04:15.9]} 25... b5 {[%clk 0:03:18.9]} 26. axb5
{[%clk 0:04:13.5]} 26... Qxb5 {[%clk 0:03:15.1]} 27. Qf7 {[%clk 0:04:12.9]}
27... Rg8 {[%clk 0:03:06.5]} 28. Re7 {[%clk 0:04:05.5]} 28... a4 {[%clk
0:03:01.5]} 29. Bxf6 {[%clk 0:04:03.9]} 29... axb3 {[%clk 0:02:49.3]} 30. Bxg7+
{[%clk 0:04:02.9]} 30... Rxg7 {[%clk 0:02:46.1]} 31. Qxg7# {[%clk 0:04:02.8]}
1-0

[Event "Live Chess"]
[Site "Chess.com"]
[Date "2024.06.01"]
[Round "-"]
[White "JanMur7"]
[Black "StoreySniper"]
[Result "1/2-1/2"]
[WhiteElo "2282"]
[BlackElo "2552"]
[TimeControl "300"]
[EndTime "11:44:05 PDT"]
[Termination "Game drawn by agreement"]

1. h4 {[%clk 0:04:52.3]} 1... h5 {[%clk 0:04:56.2]} 2. g3 {[%clk 0:04:47]} 2...
g6 {[%clk 0:04:54.7]} 3. Bg2 {[%clk 0:04:46.4]} 3... Bg7 {[%clk 0:04:54.2]} 4.
Nf3 {[%clk 0:04:45.9]} 4... Nf6 {[%clk 0:04:53.2]} 5. O-O {[%clk 0:04:45.5]}
5... O-O {[%clk 0:04:52.1]} 6. d4 {[%clk 0:04:45.1]} 6... d5 {[%clk 0:04:51.3]}
7. c4 {[%clk 0:04:44.7]} 7... c5 {[%clk 0:04:49.4]} 8. cxd5 {[%clk 0:04:39.9]}
8... cxd4 {[%clk 0:04:48.5]} 9. Nxd4 {[%clk 0:04:35.3]} 9... Nxd5 {[%clk
0:04:46.7]} 10. Nc3 {[%clk 0:04:34.6]} 10... Nxc3 {[%clk 0:04:44.3]} 11. bxc3
{[%clk 0:04:33.9]} 11... Qa5 {[%clk 0:04:28.2]} 12. Qb3 {[%clk 0:04:29]} 12...
Nc6 {[%clk 0:04:23.7]} 13. Nxc6 {[%clk 0:04:24.6]} 13... bxc6 {[%clk 0:04:22.7]}
14. Bxc6 {[%clk 0:03:41.4]} 14... Be6 {[%clk 0:04:20.7]} 15. Qa3 {[%clk
0:03:30.9]} 15... Qxc3 {[%clk 0:04:10.7]} 16. Bxa8 {[%clk 0:03:06]} 16... Qxa1
{[%clk 0:04:03.6]} 17. Qxa7 {[%clk 0:02:36.6]} 17... Bd4 {[%clk 0:03:45.4]} 18.
Qa3 {[%clk 0:02:26.5]} 18... Qxa2 {[%clk 0:03:03.7]} 19. Qxa2 {[%clk 0:02:21.4]}
19... Bxa2 {[%clk 0:03:03.6]} 20. Bf3 {[%clk 0:02:16.8]} 20... e5 {[%clk
0:02:54.1]} 21. e3 {[%clk 0:02:12.8]} 21... Bc5 {[%clk 0:02:48.4]} 22. Bb2
{[%clk 0:02:11.3]} 1/2-1/2

[Event "Live Chess"]
[Site "Chess.com"]
[Date "2024.06.01"]
[Round "-"]
[White "WelshTiger"]
[Black "WeakOldFinished"]
[Result "1-0"]
[WhiteElo "2535"]
[BlackElo "2067"]
[TimeControl "300"]
[EndTime "11:44:08 PDT"]
[Termination "WelshTiger won on time"]

1. e4 {[%clk 0:04:53.9]} 1... c6 {[%clk 0:04:56.4]} 2. d4 {[%clk 0:04:52.2]}
2... g6 {[%clk 0:04:54.5]} 3. h4 {[%clk 0:04:50.6]} 3... h5 {[%clk 0:04:52.1]}
4. Bg5 {[%clk 0:04:32.6]} 4... d5 {[%clk 0:04:47.8]} 5. Nc3 {[%clk 0:04:29.4]}
5... Bg7 {[%clk 0:04:32]} 6. Nge2 {[%clk 0:04:04.6]} 6... dxe4 {[%clk
0:04:20.3]} 7. Nxe4 {[%clk 0:04:02.7]} 7... Nf6 {[%clk 0:04:19.2]} 8. Nxf6+
{[%clk 0:04:01.6]} 8... exf6 {[%clk 0:04:18.1]} 9. Be3 {[%clk 0:04:00.5]} 9...
O-O {[%clk 0:04:16.4]} 10. Qd2 {[%clk 0:03:50.7]} 10... Re8 {[%clk 0:04:14.6]}
11. O-O-O {[%clk 0:03:49.7]} 11... Na6 {[%clk 0:04:09.1]} 12. a3 {[%clk
0:03:48.3]} 12... Nc7 {[%clk 0:04:06.9]} 13. c4 {[%clk 0:03:34.6]} 13... b5
{[%clk 0:04:02.2]} 14. Nc3 {[%clk 0:03:33.4]} 14... bxc4 {[%clk 0:04:00.1]} 15.
Bxc4 {[%clk 0:03:33.3]} 15... Nd5 {[%clk 0:03:58.9]} 16. Nxd5 {[%clk 0:03:26.4]}
16... cxd5 {[%clk 0:03:57.4]} 17. Bd3 {[%clk 0:03:21.3]} 17... Qb6 {[%clk
0:03:52]} 18. Kb1 {[%clk 0:03:14.1]} 18... Ba6 {[%clk 0:03:49.9]} 19. Rc1 {[%clk
0:03:09.2]} 19... Bxd3+ {[%clk 0:03:39.4]} 20. Qxd3 {[%clk 0:03:08]} 20... Rab8
{[%clk 0:03:38.9]} 21. Rc2 {[%clk 0:03:07.4]} 21... f5 {[%clk 0:03:32.9]} 22. g3
{[%clk 0:03:04.4]} 22... Re4 {[%clk 0:03:28.9]} 23. Rd1 {[%clk 0:03:03.3]} 23...
Rbe8 {[%clk 0:03:13.9]} 24. Qc3 {[%clk 0:02:59.6]} 24... f4 {[%clk 0:03:11.6]}
25. gxf4 {[%clk 0:02:58.8]} 25... Qf6 {[%clk 0:03:09.7]} 26. Qc6 {[%clk
0:02:47.5]} 26... Qf5 {[%clk 0:02:51]} 27. Ka1 {[%clk 0:02:42.3]} 27... R4e6
{[%clk 0:02:46]} 28. Qc5 {[%clk 0:02:34]} 28... a6 {[%clk 0:02:36.7]} 29. Rc3
{[%clk 0:02:32.3]} 29... Bf6 {[%clk 0:02:33.1]} 30. Rh1 {[%clk 0:02:24.8]} 30...
Qe4 {[%clk 0:02:23.3]} 31. Rh2 {[%clk 0:02:24.2]} 31... Qf3 {[%clk 0:02:08.1]}
32. Rc1 {[%clk 0:02:18.7]} 32... Re4 {[%clk 0:02:04.6]} 33. Rch1 {[%clk
0:02:07.3]} 33... Qe2 {[%clk 0:01:56.1]} 34. Rh3 {[%clk 0:01:58.9]} 34... Qd3
{[%clk 0:01:50.7]} 35. f5 {[%clk 0:01:56.6]} 35... Bxd4 {[%clk 0:01:40.8]} 36.
Bxd4 {[%clk 0:01:55.3]} 36... Qxd4 {[%clk 0:01:40]} 37. Qxd4 {[%clk 0:01:52.8]}
37... Rxd4 {[%clk 0:01:39.9]} 38. fxg6 {[%clk 0:01:52.5]} 38... fxg6 {[%clk
0:01:39.3]} 39. Rg3 {[%clk 0:01:49.8]} 39... Re6 {[%clk 0:01:37.5]} 40. Rc3
{[%clk 0:01:40.3]} 40... Kf7 {[%clk 0:01:34.4]} 41. Rg3 {[%clk 0:01:31.1]} 41...
Rd2 {[%clk 0:01:32.2]} 42. Rg5 {[%clk 0:01:25.2]} 42... d4 {[%clk 0:01:28.2]}
43. Rd5 {[%clk 0:01:21.6]} 43... Ree2 {[%clk 0:01:24.1]} 44. Rb1 {[%clk
0:01:20.5]} 44... Rxf2 {[%clk 0:01:22.8]} 45. Rd6 {[%clk 0:01:17.6]} 45... a5
{[%clk 0:01:21.4]} 46. Rd5 {[%clk 0:01:16.8]} 46... a4 {[%clk 0:01:20.2]} 47.
Ra5 {[%clk 0:01:15.9]} 47... d3 {[%clk 0:01:18.4]} 48. Rxa4 {[%clk 0:01:15.2]}
48... Rc2 {[%clk 0:01:17.1]} 49. Rd4 {[%clk 0:01:13.7]} 49... d2 {[%clk
0:01:16.2]} 50. Ka2 {[%clk 0:01:10.4]} 50... Re2 {[%clk 0:01:13.9]} 51. a4
{[%clk 0:01:06.9]} 51... Kf6 {[%clk 0:01:07]} 52. Kb3 {[%clk 0:01:05.9]} 52...
Ke5 {[%clk 0:01:06.2]} 53. Rd8 {[%clk 0:01:03.5]} 53... Rc6 {[%clk 0:00:50.9]}
54. Re8+ {[%clk 0:01:00.5]} 54... Re6 {[%clk 0:00:49.9]} 55. Rxe6+ {[%clk
0:00:59.6]} 55... Kxe6 {[%clk 0:00:49.6]} 56. Rd1 {[%clk 0:00:55.5]} 56... Kd5
{[%clk 0:00:44.8]} 57. Kc3 {[%clk 0:00:54.7]} 57... Re3+ {[%clk 0:00:41.7]} 58.
Kxd2 {[%clk 0:00:53.1]} 58... Re4 {[%clk 0:00:41.1]} 59. b3 {[%clk 0:00:50.1]}
59... Rxh4 {[%clk 0:00:39.8]} 60. Kc3+ {[%clk 0:00:49]} 60... Kc5 {[%clk
0:00:39.2]} 61. Rg1 {[%clk 0:00:47.6]} 61... Rh3+ {[%clk 0:00:38.2]} 62. Kb2
{[%clk 0:00:46.3]} 62... Kb4 {[%clk 0:00:36.8]} 63. Rxg6 {[%clk 0:00:43.2]}
63... Rxb3+ {[%clk 0:00:35.4]} 64. Kc2 {[%clk 0:00:42.5]} 64... Rh3 {[%clk
0:00:34.1]} 65. Ra6 {[%clk 0:00:37.5]} 65... Ra3 {[%clk 0:00:31.8]} 66. Kd2
{[%clk 0:00:35]} 66... Rxa4 {[%clk 0:00:30.8]} 67. Rh6 {[%clk 0:00:33.2]} 67...
Kb3 {[%clk 0:00:28.3]} 68. Rxh5 {[%clk 0:00:31.4]} 68... Ra2+ {[%clk 0:00:27]}
69. Kd3 {[%clk 0:00:30.8]} 69... Ra8 {[%clk 0:00:25.7]} 70. Rh8 {[%clk
0:00:29.8]} 70... Rd8+ {[%clk 0:00:24.6]} 71. Rxd8 {[%clk 0:00:27.2]} 1-0

[Event "Live Chess"]
[Site "Chess.com"]
[Date "2024.06.01"]
[Round "-"]
[White "Crowded_House"]
[Black "Mangoalo"]
[Result "1/2-1/2"]
[WhiteElo "1745"]
[BlackElo "1030"]
[TimeControl "300"]
[EndTime "11:44:08 PDT"]
[Termination "Game drawn by agreement"]

1. d4 {[%clk 0:04:58.4]} 1... Nc6 {[%clk 0:04:59.7]} 2. Bg5 {[%clk 0:04:55.2]}
2... d5 {[%clk 0:04:57.2]} 3. e3 {[%clk 0:04:49.9]} 3... f6 {[%clk 0:04:56.4]}
4. Bh4 {[%clk 0:04:48.1]} 4... Bf5 {[%clk 0:04:47.5]} 5. Bd3 {[%clk 0:04:44.6]}
5... Bg6 {[%clk 0:04:45.5]} 6. c3 {[%clk 0:04:42.4]} 6... Qd7 {[%clk 0:04:39.5]}
7. Qc2 {[%clk 0:04:34.3]} 7... O-O-O {[%clk 0:04:38.4]} 8. Bxg6 {[%clk
0:04:26.6]} 8... hxg6 {[%clk 0:04:36.9]} 9. Bg3 {[%clk 0:04:24]} 9... g5 {[%clk
0:04:34.1]} 10. Nf3 {[%clk 0:04:20]} 10... Re8 {[%clk 0:04:24]} 11. Nbd2 {[%clk
0:04:14.6]} 11... e5 {[%clk 0:04:22.1]} 12. dxe5 {[%clk 0:04:12.1]} 12... Nxe5
{[%clk 0:04:22]} 13. Nxe5 {[%clk 0:04:09.2]} 13... fxe5 {[%clk 0:04:21.6]} 14.
O-O-O {[%clk 0:03:57.7]} 14... Bd6 {[%clk 0:04:18.7]} 15. Nb3 {[%clk 0:03:54.7]}
15... e4 {[%clk 0:04:17.4]} 16. Bxd6 {[%clk 0:03:48.3]} 16... Qxd6 {[%clk
0:04:16.2]} 17. Qe2 {[%clk 0:03:42.9]} 17... Nf6 {[%clk 0:04:14.5]} 18. Qb5
{[%clk 0:03:39.5]} 18... c6 {[%clk 0:04:04]} 19. Qa5 {[%clk 0:03:25]} 19... Kb8
{[%clk 0:03:57]} 20. Qc5 {[%clk 0:03:13.3]} 20... Qc7 {[%clk 0:03:46.2]} 21. Rd4
{[%clk 0:03:00]} 1/2-1/2

[Event "Live Chess"]
[Site "Chess.com"]
[Date "2024.06.01"]
[Round "-"]
[White "Stanbad1"]
[Black "Golden_Plans"]
[Result "1-0"]
[WhiteElo "2691"]
[BlackElo "2237"]
[TimeControl "300"]
[EndTime "11:44:12 PDT"]
[Termination "Stanbad1 won by checkmate"]

1. d4 {[%clk 0:04:57.6]} 1... Nf6 {[%clk 0:04:58.7]} 2. Nc3 {[%clk 0:04:54.3]}
2... d5 {[%clk 0:04:57.9]} 3. Bg5 {[%clk 0:04:53.5]} 3... e6 {[%clk 0:04:54.9]}
4. e4 {[%clk 0:04:52.3]} 4... dxe4 {[%clk 0:04:54.5]} 5. Nxe4 {[%clk 0:04:51.7]}
5... Be7 {[%clk 0:04:54.2]} 6. Bxf6 {[%clk 0:04:50.9]} 6... Bxf6 {[%clk
0:04:54.1]} 7. Nf3 {[%clk 0:04:50]} 7... Nd7 {[%clk 0:04:53]} 8. c3 {[%clk
0:04:49.1]} 8... Be7 {[%clk 0:04:52.4]} 9. Bd3 {[%clk 0:04:48.5]} 9... Nf6
{[%clk 0:04:51.9]} 10. Neg5 {[%clk 0:04:46.7]} 10... h6 {[%clk 0:04:51.1]} 11.
Ne4 {[%clk 0:04:30.9]} 11... Bd7 {[%clk 0:04:45.8]} 12. Ne5 {[%clk 0:04:28.9]}
12... Nxe4 {[%clk 0:04:42.8]} 13. Bxe4 {[%clk 0:04:27]} 13... c6 {[%clk
0:04:42.3]} 14. Qh5 {[%clk 0:04:25]} 14... O-O {[%clk 0:04:33.9]} 15. O-O {[%clk
0:04:19.1]} 15... Be8 {[%clk 0:04:32.7]} 16. Qh3 {[%clk 0:04:16.9]} 16... f5
{[%clk 0:04:31.6]} 17. Bc2 {[%clk 0:04:14.6]} 17... Bf6 {[%clk 0:04:30.3]} 18.
Rfe1 {[%clk 0:04:13]} 18... Qc7 {[%clk 0:04:24.2]} 19. Bb3 {[%clk 0:04:10.5]}
19... Qd6 {[%clk 0:04:17]} 20. Qxf5 {[%clk 0:04:04.4]} 20... Bxe5 {[%clk
0:03:08.7]} 21. Qxe6+ {[%clk 0:03:55.3]} 21... Bf7 {[%clk 0:03:00.6]} 22. Qxe5
{[%clk 0:03:51.3]} 22... Qxe5 {[%clk 0:02:58.9]} 23. Rxe5 {[%clk 0:03:49.9]}
23... Bxb3 {[%clk 0:02:58.8]} 24. axb3 {[%clk 0:03:49.1]} 24... a6 {[%clk
0:02:58]} 25. f3 {[%clk 0:03:47.8]} 25... Rae8 {[%clk 0:02:57]} 26. Rae1 {[%clk
0:03:46.6]} 26... Rxe5 {[%clk 0:02:56.2]} 27. Rxe5 {[%clk 0:03:46.5]} 27... Rf7
{[%clk 0:02:55.9]} 28. Re8+ {[%clk 0:03:45.4]} 28... Kh7 {[%clk 0:02:55.1]} 29.
Kf2 {[%clk 0:03:44.6]} 29... Kg6 {[%clk 0:02:54.5]} 30. Re6+ {[%clk 0:03:42.8]}
30... Rf6 {[%clk 0:02:53.3]} 31. Rxf6+ {[%clk 0:03:42]} 31... Kxf6 {[%clk
0:02:53.2]} 32. Ke3 {[%clk 0:03:41.3]} 32... Ke6 {[%clk 0:02:52.5]} 33. Ke4
{[%clk 0:03:40.8]} 33... Kd6 {[%clk 0:02:51.5]} 34. Kf5 {[%clk 0:03:39.3]} 34...
Kd5 {[%clk 0:02:50.6]} 35. Kg6 {[%clk 0:03:38.6]} 35... b5 {[%clk 0:02:49.5]}
36. Kxg7 {[%clk 0:03:37]} 36... a5 {[%clk 0:02:49.2]} 37. Kg6 {[%clk 0:03:34]}
37... a4 {[%clk 0:02:48.3]} 38. bxa4 {[%clk 0:03:33.4]} 38... bxa4 {[%clk
0:02:47.2]} 39. f4 {[%clk 0:03:33]} 39... Kc4 {[%clk 0:02:46.2]} 40. f5 {[%clk
0:03:32.5]} 40... Kb3 {[%clk 0:02:45.9]} 41. f6 {[%clk 0:03:32]} 41... Kxb2
{[%clk 0:02:45.6]} 42. f7 {[%clk 0:03:31.7]} 42... a3 {[%clk 0:02:45.2]} 43.
f8=Q {[%clk 0:03:31.3]} 43... a2 {[%clk 0:02:44.8]} 44. Qb4+ {[%clk 0:03:30.7]}
44... Ka1 {[%clk 0:02:42.2]} 45. Kxh6 {[%clk 0:03:26.6]} 45... c5 {[%clk
0:02:41.4]} 46. Qb3 {[%clk 0:03:25.6]} 46... c4 {[%clk 0:02:39.8]} 47. Qxc4
{[%clk 0:03:24.1]} 47... Kb2 {[%clk 0:02:38.8]} 48. Qxa2+ {[%clk 0:03:23.7]}
48... Kxa2 {[%clk 0:02:38.7]} 49. d5 {[%clk 0:03:23.4]} 49... Kb3 {[%clk
0:02:38.5]} 50. d6 {[%clk 0:03:23.3]} 50... Kc4 {[%clk 0:02:38.4]} 51. d7 {[%clk
0:03:23]} 51... Kd5 {[%clk 0:02:38.2]} 52. d8=Q+ {[%clk 0:03:22.3]} 52... Ke4
{[%clk 0:02:38.1]} 53. c4 {[%clk 0:03:21.1]} 53... Ke3 {[%clk 0:02:38]} 54. c5
{[%clk 0:03:20.8]} 54... Kf2 {[%clk 0:02:37.9]} 55. c6 {[%clk 0:03:20.4]} 55...
Kg1 {[%clk 0:02:37.8]} 56. c7 {[%clk 0:03:19.8]} 56... Kh1 {[%clk 0:02:37.7]}
57. c8=Q {[%clk 0:03:18.4]} 57... Kg1 {[%clk 0:02:37.6]} 58. g4 {[%clk
0:03:17.5]} 58... Kh1 {[%clk 0:02:37.5]} 59. g5 {[%clk 0:03:17.1]} 59... Kg1
{[%clk 0:02:37.4]} 60. g6 {[%clk 0:03:16.8]} 60... Kh1 {[%clk 0:02:37.3]} 61. g7
{[%clk 0:03:16.4]} 61... Kg1 {[%clk 0:02:37.2]} 62. g8=N {[%clk 0:03:14.9]}
62... Kh1 {[%clk 0:02:37.1]} 63. h4 {[%clk 0:03:14]} 63... Kg1 {[%clk 0:02:37]}
64. h5 {[%clk 0:03:13.7]} 64... Kh1 {[%clk 0:02:36.9]} 65. Kg6 {[%clk
0:03:13.3]} 65... Kg1 {[%clk 0:02:36.8]} 66. h6 {[%clk 0:03:13]} 66... Kh1
{[%clk 0:02:36.7]} 67. h7 {[%clk 0:03:12.7]} 67... Kg1 {[%clk 0:02:36.6]} 68.
h8=R {[%clk 0:03:11.6]} 68... Kg2 {[%clk 0:02:35.4]} 69. Qd2+ {[%clk 0:03:10.8]}
69... Kg1 {[%clk 0:02:35.3]} 70. Qcc1# {[%clk 0:03:09.4]} 1-0

[Event "Live Chess"]
[Site "Chess.com"]
[Date "2024.06.01"]
[Round "-"]
[White "koekoekoe"]
[Black "educatedlad"]
[Result "1-0"]
[WhiteElo "2079"]
[BlackElo "1759"]
[TimeControl "300"]
[EndTime "11:44:43 PDT"]
[Termination "koekoekoe won by resignation"]

1. d4 {[%clk 0:04:59.2]} 1... Nf6 {[%clk 0:04:58]} 2. Bf4 {[%clk 0:04:58.7]}
2... g6 {[%clk 0:04:56.7]} 3. e3 {[%clk 0:04:58.4]} 3... Bg7 {[%clk 0:04:55.7]}
4. Nf3 {[%clk 0:04:58]} 4... O-O {[%clk 0:04:54]} 5. c4 {[%clk 0:04:53.9]} 5...
c5 {[%clk 0:04:52.5]} 6. Nc3 {[%clk 0:04:52.6]} 6... cxd4 {[%clk 0:04:51.4]} 7.
exd4 {[%clk 0:04:52.5]} 7... d6 {[%clk 0:04:45.8]} 8. Bd3 {[%clk 0:04:51.3]}
8... Nc6 {[%clk 0:04:45]} 9. O-O {[%clk 0:04:49.5]} 9... Qb6 {[%clk 0:04:43.3]}
10. d5 {[%clk 0:04:43.3]} 10... Nb4 {[%clk 0:04:41]} 11. b3 {[%clk 0:04:32.6]}
11... Nxd3 {[%clk 0:04:39.5]} 12. Qxd3 {[%clk 0:04:32.5]} 12... Bf5 {[%clk
0:04:37.1]} 13. Qd2 {[%clk 0:04:28]} 13... Ne4 {[%clk 0:04:36.6]} 14. Nxe4
{[%clk 0:04:13.4]} 14... Bxa1 {[%clk 0:04:34.1]} 15. Ng3 {[%clk 0:04:11.9]}
15... Bg7 {[%clk 0:04:20.2]} 16. Nxf5 {[%clk 0:04:10.7]} 16... gxf5 {[%clk
0:04:20.1]} 17. Bh6 {[%clk 0:04:09.4]} 17... e6 {[%clk 0:04:11.2]} 18. Bxg7
{[%clk 0:04:06.5]} 18... Kxg7 {[%clk 0:04:11.1]} 19. Qg5+ {[%clk 0:04:04]} 19...
Kh8 {[%clk 0:04:10.2]} 20. Qf6+ {[%clk 0:03:57.4]} 20... Kg8 {[%clk 0:04:08.8]}
21. Ng5 {[%clk 0:03:56.6]} 21... Qd8 {[%clk 0:04:03.8]} 22. Qh6 {[%clk
0:03:52.9]} 22... Re8 {[%clk 0:03:43.7]} 23. Qxh7+ {[%clk 0:03:50.2]} 1-0

[Event "Live Chess"]
[Site "Chess.com"]
[Date "2024.06.01"]
[Round "-"]
[White "KeithArkell"]
[Black "Colm_Buckley"]
[Result "1-0"]
[WhiteElo "2496"]
[BlackElo "1818"]
[TimeControl "300"]
[EndTime "11:45:04 PDT"]
[Termination "KeithArkell won by resignation"]

1. d4 {[%clk 0:04:56.7]} 1... e6 {[%clk 0:04:56.9]} 2. Nf3 {[%clk 0:04:55.9]}
2... Nf6 {[%clk 0:04:55.5]} 3. Bg5 {[%clk 0:04:54.6]} 3... h6 {[%clk 0:04:53.4]}
4. Bxf6 {[%clk 0:04:53.4]} 4... Qxf6 {[%clk 0:04:52.2]} 5. e4 {[%clk 0:04:53.1]}
5... c5 {[%clk 0:04:46.4]} 6. e5 {[%clk 0:04:51.8]} 6... Qd8 {[%clk 0:04:44.8]}
7. d5 {[%clk 0:04:51]} 7... d6 {[%clk 0:04:40.4]} 8. Nc3 {[%clk 0:04:49.5]} 8...
dxe5 {[%clk 0:04:38.8]} 9. Bb5+ {[%clk 0:04:47.4]} 9... Bd7 {[%clk 0:04:36]} 10.
dxe6 {[%clk 0:04:46.6]} 10... fxe6 {[%clk 0:04:31.1]} 11. Nxe5 {[%clk
0:04:44.4]} 11... Nc6 {[%clk 0:04:21.2]} 12. Qh5+ {[%clk 0:04:40.8]} 1-0

[Event "Live Chess"]
[Site "Chess.com"]
[Date "2024.06.01"]
[Round "-"]
[White "degringolade64"]
[Black "WilliamofOrange16th"]
[Result "0-1"]
[WhiteElo "2046"]
[BlackElo "1983"]
[TimeControl "300"]
[EndTime "11:45:22 PDT"]
[Termination "WilliamofOrange16th won by resignation"]

1. e4 {[%clk 0:04:57.8]} 1... d6 {[%clk 0:04:59]} 2. d4 {[%clk 0:04:56.2]} 2...
Nf6 {[%clk 0:04:58.3]} 3. Nc3 {[%clk 0:04:55.4]} 3... Nbd7 {[%clk 0:04:57.3]} 4.
g4 {[%clk 0:04:50.7]} 4... h6 {[%clk 0:04:55.4]} 5. h3 {[%clk 0:04:47.1]} 5...
e5 {[%clk 0:04:54.4]} 6. Nge2 {[%clk 0:04:43.8]} 6... b5 {[%clk 0:04:53.5]} 7.
Nxb5 {[%clk 0:04:12.2]} 7... Nxe4 {[%clk 0:04:51.3]} 8. Bg2 {[%clk 0:04:10.8]}
8... Bb7 {[%clk 0:04:50.9]} 9. O-O {[%clk 0:03:57.7]} 9... a6 {[%clk 0:04:45.9]}
10. dxe5 {[%clk 0:03:35.5]} 10... axb5 {[%clk 0:04:40.1]} 11. Qd4 {[%clk
0:03:30.8]} 11... dxe5 {[%clk 0:04:32.9]} 12. Qe3 {[%clk 0:03:27.1]} 12... Nec5
{[%clk 0:04:11.4]} 13. Bxb7 {[%clk 0:03:19.9]} 13... Nxb7 {[%clk 0:04:11.3]} 14.
Nd4 {[%clk 0:03:08.5]} 14... Bd6 {[%clk 0:03:45.6]} 15. Nc6 {[%clk 0:03:06.3]}
15... Qf6 {[%clk 0:03:40]} 16. f4 {[%clk 0:03:00.3]} 16... Bc5 {[%clk
0:03:34.4]} 17. fxe5 {[%clk 0:02:52.9]} 17... Bxe3+ {[%clk 0:03:32]} 18. Bxe3
{[%clk 0:02:52.5]} 18... Qxc6 {[%clk 0:03:28.5]} 0-1

[Event "Live Chess"]
[Site "Chess.com"]
[Date "2024.06.01"]
[Round "-"]
[White "Ferrarifan27"]
[Black "elephantgerrald"]
[Result "1-0"]
[WhiteElo "2049"]
[BlackElo "753"]
[TimeControl "300"]
[EndTime "11:45:36 PDT"]
[Termination "Ferrarifan27 won by checkmate"]

1. e4 {[%clk 0:04:52.3]} 1... e5 {[%clk 0:04:58.7]} 2. Nf3 {[%clk 0:04:47.6]}
2... Nf6 {[%clk 0:04:56.6]} 3. Nxe5 {[%clk 0:04:43.5]} 3... Qe7 {[%clk
0:04:50.2]} 4. Nf3 {[%clk 0:04:40.7]} 4... Qxe4+ {[%clk 0:04:48.4]} 5. Be2
{[%clk 0:04:39.3]} 5... Ng4 {[%clk 0:04:40.5]} 6. O-O {[%clk 0:04:36.1]} 6...
Bd6 {[%clk 0:04:10.9]} 7. Re1 {[%clk 0:04:31.8]} 7... Qg6 {[%clk 0:04:05.3]} 8.
Bd3+ {[%clk 0:04:27.3]} 8... Qe6 {[%clk 0:03:30.2]} 9. Rxe6+ {[%clk 0:04:24]}
9... dxe6 {[%clk 0:03:24.7]} 10. h3 {[%clk 0:04:23]} 10... Nf6 {[%clk
0:03:21.4]} 11. Nc3 {[%clk 0:04:20]} 11... O-O {[%clk 0:03:16.4]} 12. Ne4 {[%clk
0:04:18.4]} 12... Nc6 {[%clk 0:02:55.7]} 13. Nxf6+ {[%clk 0:04:15.2]} 13... gxf6
{[%clk 0:02:47.8]} 14. c3 {[%clk 0:04:14.3]} 14... Kh8 {[%clk 0:02:36.9]} 15.
Nd4 {[%clk 0:04:10.1]} 15... Nxd4 {[%clk 0:02:35]} 16. cxd4 {[%clk 0:04:10]}
16... e5 {[%clk 0:02:33.6]} 17. Qh5 {[%clk 0:04:06.1]} 17... exd4 {[%clk
0:02:29.8]} 18. Qxh7# {[%clk 0:04:04.3]} 1-0